fUSD/lending_fUSD_20241004
["ID","MTS","AMOUNT","RATE_DAILY","PERIOD"]
[339845716,1728059432880,-3410.50407077,0.00037642,2]
[339845717,1728059432892,-471.55435349,0.00037642,2]
[339845718,1728059432910,-8294.00000363,0.00037642,2]
[339845719,1728059432920,-4222.45518894,0.00037642,2]
[339845720,1728059432929,-64489.5495,0.00037642,2]
[339845721,1728059432938,-150.0,0.00037645,120]
[339845722,1728059432947,-37854.3892,0.00037646,2]
[339845723,1728059432955,-1000.0,0.00037708,2]
[339845724,1728059432965,-500.0,0.00037708,2]
[339845725,1728059432974,-500.0,0.00037735,15]
[339845726,1728059432983,-500.0,0.00037735,15]
[339845727,1728059432992,-615.82945464,0.00037735,15]
[339845728,1728059433001,-85235.8445134,0.00037736,6]
[339845729,1728059433010,-128106.61737956,0.00037746,2]
[339845730,1728059433024,-575.10458265,0.00037746,2]
[339845731,1728059433039,-1361.2520385,0.00037746,2]
[339845732,1728059433049,-1284.40976051,0.00037746,2]
[339845733,1728059433061,-405.84115355,0.00037746,2]
[339845738,1728059437965,-363.811,0.00027665,2]
[339845739,1728059437974,-274.95706,0.00037746,2]
[339845740,1728059438078,-452.90409866,0.00037746,2]
[339845741,1728059438092,-1796.93816096,0.00037746,2]
[339845742,1728059438103,-19398.19276561,0.00037746,2]
[339845743,1728059438113,-151.0,0.00037746,7]
[339845744,1728059438125,-167.38,0.00037771,2]
[339845745,1728059438135,-600.0,0.000378,13]
[339845746,1728059438144,-1300.0,0.000379,13]
[339845747,1728059438153,-150.0,0.00037911,120]
[339845748,1728059438163,-217.0,0.00037956,2]
[339845749,1728059438173,-549.05,0.00037956,2]
[339845750,1728059438182,-4134.25937054,0.0003799,6]
[339845751,1728059438195,-24242.7323858,0.0003799,6]
[339845752,1728059438208,-34.95641476,0.0003799,6]
[339845753,1728059438217,-14205.9740856,0.0003799,6]
[339845754,1728059438227,-16877.24861533,0.00038,38]
[339845829,1728059440154,-11371.09618121,0.00036941,15]
[339845830,1728059440163,-1000.0,0.00037542,2]
[339845831,1728059440173,-386.61,0.0003799,10]
[339845832,1728059440182,-33122.75138467,0.00038,38]
[339845833,1728059440192,-10062.0,0.00038,120]
[339845834,1728059440201,-3468.11,0.00038,15]
[339845835,1728059440211,-5537.0,0.00038,30]
[339845836,1728059440220,-151.0,0.00038,7]
[339845837,1728059440230,-413.0,0.00038,120]
[339845838,1728059440240,-14205.9740856,0.00038017,6]
[339845839,1728059440249,-169.99921631,0.00038019,13]
[339845840,1728059440259,-1337.07,0.00038027,120]
[339845841,1728059440269,-1337.07,0.00038027,120]
[339845842,1728059440278,-1337.07,0.00038027,120]
[339845843,1728059440288,-1337.07,0.00038027,120]
[339845844,1728059440297,-1337.07,0.00038027,120]
[339845845,1728059440307,-1337.07,0.00038027,120]
[339845846,1728059440316,-1337.07,0.00038027,120]
[339845847,1728059440326,-1337.07,0.00038027,120]
[339845848,1728059440335,-1337.07,0.00038027,120]
[339845849,1728059440345,-1337.07,0.00038027,120]
[339845850,1728059440354,-1337.07,0.00038027,120]
[339845851,1728059440363,-1337.07,0.00038027,120]
[339845852,1728059440379,-1337.07,0.00038027,120]
[339845853,1728059440389,-1337.07,0.00038027,120]
[339845854,1728059440398,-1337.07,0.00038027,120]
[339845856,1728059440408,-1337.07,0.00038027,120]
[339845858,1728059440418,-1337.07,0.00038027,120]
[339845860,1728059440427,-1337.07,0.00038027,120]
[339845862,1728059440436,-1337.07,0.00038027,120]
[339845864,1728059440446,-1337.07,0.00038027,120]
[339845866,1728059440456,-1337.07,0.00038027,120]
[339845868,1728059440466,-1337.07,0.00038027,120]
[339845869,1728059440477,-1337.07,0.00038027,120]
[339845871,1728059440487,-1337.1178601,0.00038027,120]
[339845873,1728059440497,-15693.7511696,0.00038105,6]
[339845876,1728059440508,-151.0,0.00038119,7]
[339845878,1728059440519,-14205.9740856,0.00038135,6]
[339845880,1728059440529,-169.9992163,0.00038138,13]
[339845882,1728059440539,-500.0,0.00038164,7]
[339845884,1728059440548,-300.0,0.000382,2]
[339845886,1728059440558,-190.90068574,0.00038246,11]
[339845888,1728059440568,-281.3040781,0.00038246,11]
[339845890,1728059440578,-182.4353,0.00038256,3]
[339845892,1728059440588,-7500.0,0.00038256,2]
[339845894,1728059440597,-169.9992163,0.00038256,13]
[339845896,1728059440607,-356.21487475,0.00038323,2]
[339845898,1728059440617,-151.0,0.00038325,7]
[339845900,1728059440630,-14205.9740856,0.00038326,6]
[339845902,1728059440640,-15693.7511696,0.00038326,6]
[339845904,1728059440650,-13736.60428852,0.00038336,6]
[339845906,1728059440662,-469.36979708,0.00038336,6]
[339845908,1728059440673,-15693.7511696,0.00038336,6]
[339845910,1728059440684,-286.17813824,0.00038344,2]
[339845912,1728059440697,-2228.91085345,0.00038344,2]
[339845914,1728059440706,-500.0,0.00038345,15]
[339845916,1728059440716,-341.16323454,0.00038345,15]
[339845918,1728059440725,-40815.7551788,0.00038346,6]
[339845921,1728059440741,-89099.0984953,0.00038346,6]
[339845923,1728059440752,-12144.8871819,0.00038346,6]
[339845925,1728059440762,-41138.1443293,0.00038346,6]
[339845927,1728059440774,-379.9422459,0.00038346,6]
[339845929,1728059440786,-626.13342056,0.00038346,6]
[339845933,1728059440809,-718.02320693,0.00038346,6]
[339845935,1728059440822,-1423.0137104,0.00038346,6]
[339845937,1728059440833,-608.628,0.00038346,6]
[339845939,1728059440845,-620.28016,0.00038346,6]
[339845942,1728059440856,-1073.80355349,0.00038346,6]
[339845944,1728059440868,-44316.15143327,0.00038346,6]
[339845946,1728059440882,-267.55,0.00038346,6]
[339845948,1728059440894,-1978.58634117,0.00038346,6]
[339845950,1728059440905,-1832.89551806,0.00038346,6]
[339846054,1728059443239,-695.84866301,0.00038346,6]
[339846055,1728059443252,-269.95477448,0.00038346,6]
[339846063,1728059444935,150.0,0.00010227,2]
[339846069,1728059446043,-11371.09618118,0.00037581,15]
[339846070,1728059446054,-153.89204574,0.00037608,2]
[339846071,1728059446063,-1308.42177308,0.00038346,6]
[339846072,1728059446075,-805.88832449,0.00038346,6]
[339846092,1728060632064,-162.34,0.00010959,2]
[339846093,1728060632076,-178.35,0.00010959,2]
[339846094,1728060632087,-250.0,0.00013,2]
[339846095,1728060632098,-300.0,0.00015,2]
[339846096,1728060632109,-350.0,0.00017,2]
[339846097,1728060632120,-8.42287828,0.00030299,30]
[339846098,1728060632228,-288.00312172,0.00030299,30]
[339846099,1728060632238,-1491.99308069,0.00030399,2]
[339846100,1728060632251,-1620.29840181,0.00030399,2]
[339846101,1728060632263,-400.11801074,0.00030399,2]
[339846102,1728060632338,-2421.09900074,0.00030399,2]
[339846103,1728060632351,-984.78850602,0.00030399,2]
[339846104,1728060632362,-306.68,0.00033483,2]
[339846105,1728060632374,-185.33,0.00034811,2]
[339846106,1728060632385,-150.999995,0.00035,120]
[339846107,1728060632396,-308.63,0.00035097,2]
[339846108,1728060632406,-322.62,0.00035199,120]
[339846109,1728060632417,-184.69,0.00035233,2]
[339846110,1728060632427,-250.0,0.00035275,2]
[339846111,1728060632438,-150.21,0.00035287,2]
[339846112,1728060632448,-184.69,0.00035291,2]
[339846114,1728060632458,-250.0,0.00035311,120]
[339846116,1728060632468,-2411.19624227,0.00035344,2]
[339846140,1728060638142,-339.80375773,0.00035344,2]
[339846141,1728060638152,-184.69,0.0003535,2]
[339846142,1728060638162,-184.69,0.00035409,2]
[339846143,1728060638172,-200.0,0.00035412,2]
[339846144,1728060638181,-250.0,0.00035468,2]
[339846145,1728060638191,-2000.0,0.00035614,120]
[339846146,1728060638201,-94.16624227,0.00035747,2]
[339846147,1728060638212,-212.51375773,0.00035747,2]
[339846148,1728060638222,-23900.0,0.00035856,2]
[339846149,1728060638231,-189.44,0.00035899,120]
[339846150,1728060638241,-1288.41,0.00036191,28]
[339846151,1728060638250,-422.348,0.00037099,47]
[339846152,1728060638259,-161.637,0.00037099,47]
[339846153,1728060638269,-178.37,0.00037204,2]
[339846154,1728060638279,-184.82,0.00037418,120]
[339846155,1728060638289,-1000.0,0.00037439,2]
[339846156,1728060638298,-500.0,0.00037442,2]
[339846157,1728060638307,-4000.0,0.00037485,28]
[339846158,1728060638317,-5598.90480983,0.000375,30]
[339846159,1728060638330,-257.68554443,0.000375,30]
[339846160,1728060638343,-12515.49999999,0.000375,30]
[339846161,1728060638365,-1165.63253657,0.000375,30]
[339846162,1728060638381,-660.79395,0.000375,30]
[339846163,1728060638397,-415.20444359,0.000375,30]
[339846164,1728060638409,-262.10629472,0.000375,30]
[339846165,1728060638420,-7552.57102948,0.000375,30]
[339846166,1728060638431,-624.95907672,0.000375,30]
[339846168,1728060638442,-637.95,0.000375,30]
[339846357,1728060640286,-1980.46927494,0.000375,30]
[339846363,1728060640343,-63936.96002137,0.000375,30]
[339846364,1728060640399,-303.32305822,0.000375,30]
[339846365,1728060640411,-2055.17869338,0.000375,30]
[339846366,1728060640423,-801.81421915,0.000375,30]
[339846367,1728060640434,-1157.46453,0.000375,30]
[339846368,1728060640446,-2210.71565238,0.000375,30]
[339846631,1728060643313,-32955.79687723,0.000375,30]
[339846637,1728060643361,-684.54534414,0.000375,30]
[339846650,1728060643473,-295.28000002,0.000375,30]
[339846652,1728060643485,-6226.51013315,0.000375,30]
[339846654,1728060643496,-5647.06218954,0.000375,30]
[339846720,1728060646158,-8725.5810911,0.000375,30]
[339846727,1728060646214,-4889.19504374,0.000375,30]
[339846739,1728060646325,-24952.61777863,0.000375,30]
[339846744,1728060646383,-3122.82249557,0.000375,30]
[339846745,1728060646393,-8569.35481304,0.000375,30]
[339846746,1728060646404,-1423.19575215,0.000375,30]
[339846773,1728061050180,-336.8029,0.00010859,2]
[339846775,1728061081321,300.0,0.00019725,2]
[339846926,1728061832322,-161.18,0.00010959,2]
[339846927,1728061832331,-250.0,0.00013,2]
[339846928,1728061832340,-65.366,0.00014,7]
[339846929,1728061832352,-1016.311532,0.00014,7]
[339846930,1728061832375,-970.8031062,0.00014,7]
[339846931,1728061832389,-625.41834,0.00014,7]
[339846932,1728061832401,-2620.10731127,0.00014,7]
[339846933,1728061832433,-652.06,0.00014,7]
[339846934,1728061832444,-488.0757,0.00014,7]
[339846935,1728061832455,-944.44233753,0.00014,7]
[339846936,1728061832466,-2765.487393,0.00014,7]
[339846937,1728061832475,-1405.952355,0.00014,7]
[339846938,1728061832485,-5762.94241741,0.00025759,60]
[339846939,1728061832494,-3784.86474506,0.00030282,120]
[339846940,1728061832502,-377.2,0.00030282,120]
[339846941,1728061832511,-426.424,0.00030399,2]
[339846942,1728061832520,-449.0,0.00030399,2]
[339846943,1728061832529,-626.0,0.00030399,2]
[339846944,1728061832538,-1296.0,0.00030399,2]
[339846945,1728061832547,-558.0,0.00030399,2]
[339846947,1728061832558,-623.581,0.00030399,2]
[339846949,1728061832567,-2037.47,0.00030399,2]
[339846951,1728061832576,-3350.0,0.00030399,2]
[339846953,1728061832585,-806.0,0.00030399,2]
[339846955,1728061832594,-1910.0,0.00030399,2]
[339846957,1728061832603,-499.99,0.00030399,2]
[339846959,1728061832612,-150.0,0.00030399,2]
[339846961,1728061832621,-268.035,0.00030399,2]
[339846963,1728061832631,-1148.0,0.00030399,2]
[339846965,1728061832640,-325.1,0.00033364,2]
[339846966,1728061832649,-150.2,0.00034889,2]
[339846968,1728061832658,-471.98,0.0003489,2]
[339846970,1728061832667,-2751.0,0.00035029,2]
[339846972,1728061832677,-200.0,0.00035077,2]
[339846974,1728061832685,-1310.49,0.0003522,60]
[339846976,1728061832694,-250.0,0.00035259,2]
[339846977,1728061832703,-250.0,0.00035308,120]
[339846979,1728061832712,-184.82,0.00035332,120]
[339846981,1728061832722,-423.34,0.00035377,2]
[339846983,1728061832731,-756.04,0.00035377,2]
[339846985,1728061832740,-423.34,0.00035377,2]
[339846987,1728061832749,-754.45,0.00035377,2]
[339846989,1728061832758,-422.91,0.00035377,2]
[339846991,1728061832768,-754.45,0.00035377,2]
[339846993,1728061832777,-754.45,0.00035377,2]
[339846994,1728061832786,-754.45,0.00035377,2]
[339846996,1728061832796,-322.88,0.00035394,2]
[339846998,1728061832806,-358.1697035,0.00035438,2]
[339847000,1728061832815,-2018.0,0.00035441,99]
[339847001,1728061832824,-268.85,0.00035448,120]
[339847002,1728061832833,-15293.48,0.00035448,2]
[339847003,1728061832842,-150.0,0.00035514,2]
[339847004,1728061832851,-1000.0,0.00035565,2]
[339847005,1728061832860,-325.1,0.00035628,2]
[339847006,1728061832869,-2000.0,0.00036094,120]
[339847007,1728061832878,-186.16,0.00036168,2]
[339847008,1728061832887,-1007.0,0.000362,7]
[339847009,1728061832897,-4117.0,0.000362,4]
[339847010,1728061832906,-1720.0,0.000362,7]
[339847011,1728061832915,-1549.0,0.000362,7]
[339847012,1728061832924,-1323.0,0.000362,7]
[339847013,1728061832934,-157.99,0.00036222,2]
[339847014,1728061832943,-151.6,0.00036338,2]
[339847015,1728061832952,-214.5937,0.0003689,2]
[339847016,1728061832961,-3718.7655568,0.000369,9]
[339847017,1728061832970,-337.879,0.00036957,47]
[339847018,1728061832979,-9884.93769686,0.00036964,15]
[339847019,1728061832988,-322.18,0.0003698,10]
[339847020,1728061832997,-268.48,0.0003698,10]
[339847021,1728061833007,-223.73,0.0003698,10]
[339847022,1728061833016,-11423.54293118,0.0003699,6]
[339847023,1728061833028,-285.29701288,0.0003699,6]
[339847024,1728061833039,-1284.40976051,0.0003699,6]
[339847025,1728061833051,-405.84115355,0.0003699,6]
[339847028,1728061838401,-307.67134116,0.0003699,6]
[339847029,1728061838457,-307.03874879,0.0003699,6]
[339847030,1728061838514,-300.32,0.0003699,6]
[339847046,1728061840336,-186.45,0.0003699,10]
[339847047,1728061840346,-142.115,0.0003699,6]
[339847048,1728061840559,-725.5625,0.0003699,6]
[339847064,1728061843322,-467.6273467,0.0003699,6]
[339847101,1728063031439,-166.0,0.00010959,2]
[339847102,1728063031449,-873.14973622,0.00011,2]
[339847104,1728063031460,-2687.72843542,0.00011,2]
[339847106,1728063031471,-13750.61353858,0.00011,2]
[339847108,1728063031482,-427.53,0.00011,2]
[339847109,1728063031672,-1712.39,0.00011,2]
[339847123,1728063037495,-2701.72070784,0.00011,2]
[339847124,1728063037570,-312.27156458,0.00011,2]
[339847125,1728063037581,-1072.29842441,0.00011,2]
[339847126,1728063037646,-7050.89368778,0.00011,2]
[339847145,1728063039545,-155021.43122533,0.00011,2]
[339847146,1728063039555,-991.98594715,0.000129,2]
[339847147,1728063039565,-357.15380834,0.000164,2]
[339847148,1728063039575,-20957.45426443,0.0002,2]
[339847149,1728063039585,-1905.0,0.00032988,2]
[339847150,1728063039596,-929.025,0.00032988,2]
[339847151,1728063039606,-185.761,0.00032988,2]
[339847152,1728063039617,-1296.0,0.00032988,2]
[339847153,1728063039627,-449.0,0.00032988,2]
[339847154,1728063039637,-245.2,0.00032988,2]
[339847155,1728063039647,-150.0,0.00032988,2]
[339847156,1728063039656,-542.342,0.00032988,2]
[339847157,1728063039667,-338.28,0.00033314,2]
[339847158,1728063039677,-179.99,0.00033314,17]
[339847159,1728063039687,-1429.13,0.00033314,2]
[339847160,1728063039697,-2018.0,0.00034554,89]
[339847161,1728063039707,-969.99,0.00034708,2]
[339847162,1728063039717,-200.0,0.0003474,2]
[339847163,1728063039726,-150.18,0.00034822,2]
[339847164,1728063039736,-445.06,0.00034904,2]
[339847165,1728063039745,-224.04,0.00035059,120]
[339847166,1728063039755,-499.99,0.00035059,2]
[339847167,1728063039765,-250.0,0.00035187,120]
[339847168,1728063039776,-250.0,0.00035253,2]
[339847169,1728063039786,-312.28,0.00035312,2]
[339847170,1728063039797,-2819.52,0.00035354,2]
[339847171,1728063039807,-925.6,0.00035405,2]
[339847172,1728063039818,-157.09,0.00035423,120]
[339847173,1728063039828,-2000.0,0.00035461,120]
[339847174,1728063039838,-800.0,0.00035463,2]
[339847175,1728063039848,-338.28,0.00035578,2]
[339847176,1728063039858,-157.99,0.00035776,2]
[339847177,1728063039867,-100000.0,0.000358,30]
[339847178,1728063039877,-156.38652867,0.00036078,2]
[339847179,1728063039887,-300.0,0.00036178,2]
[339847180,1728063039897,-150.0,0.00036178,2]
[339847181,1728063039906,-358.52,0.00036178,2]
[339847182,1728063039915,-358.52,0.00036178,2]
[339847184,1728063039925,-358.52,0.00036178,2]
[339847186,1728063039935,-356.76,0.00036178,2]
[339847188,1728063039945,-1145.0,0.000362,4]
[339847190,1728063039955,-198.58,0.00036226,120]
[339847192,1728063039967,-270.303,0.0003634,45]
[339847200,1728063039976,-200.0,0.0003634,2]
[339847202,1728063040054,-168.611,0.0003634,45]
[339847204,1728063040063,-406.7514375,0.00036355,2]
[339847206,1728063040074,-7619.94,0.0003649,5]
[339847208,1728063040083,-7575.92,0.00036526,5]
[339847210,1728063040092,-406.75143751,0.00036541,2]
[339847212,1728063040103,-167.38,0.00036564,2]
[339847214,1728063040112,-200.0,0.00036576,2]
[339847216,1728063040121,-192.0,0.00036576,2]
[339847218,1728063040131,-7605.18,0.00036576,5]
[339847220,1728063040140,-156.38652863,0.00036624,2]
[339847222,1728063040149,-7530.59,0.00036643,5]
[339847224,1728063040158,-190.47586441,0.00036698,15]
[339847226,1728063040168,-500.0,0.00036698,15]
[339847228,1728063040177,-28768.60345755,0.00036699,120]
[339847230,1728063040186,-33445.08527993,0.00036699,120]
[339847232,1728063040195,-4178.6255,0.000367,2]
[339847234,1728063040205,-1767.3279,0.000367,2]
[339847236,1728063040215,-9336.7361,0.000367,2]
[339847237,1728063040225,-2200.0,0.000367,13]
[339847239,1728063040234,-627.5545,0.000367,2]
[339847241,1728063040243,-12473.07591053,0.000367,15]
[339847243,1728063040252,-355.7179,0.000367,2]
[339847245,1728063040262,-700.0,0.000367,13]
[339847247,1728063040271,-2500.0,0.000367,2]
[339847249,1728063040280,-7592.3,0.00036718,5]
[339847251,1728063040290,-155.37,0.0003678,10]
[339847253,1728063040300,-776.88,0.0003678,10]
[339847255,1728063040310,-26985.2155612,0.00036789,6]
[339847257,1728063040320,-40477.8233417,0.0003679,6]
[339847259,1728063040329,-436.09254635,0.0003679,11]
[339847261,1728063040339,-476.68278577,0.0003679,2]
[339847263,1728063040351,-210.737738,0.0003679,7]
[339847265,1728063040360,-3000.0,0.00036799,120]
[339847267,1728063040370,-3006.58740041,0.00036799,120]
[339847269,1728063040379,-151.0,0.00036799,7]
[339847271,1728063040390,-298.19092,0.00036799,7]
[339847273,1728063040400,-151.0,0.00036799,7]
[339847275,1728063040409,-151.0,0.00036799,7]
[339847277,1728063040418,-75419.2657,0.000368,2]
[339847279,1728063040428,-14677.8356,0.000368,2]
[339847281,1728063040438,-4400.0,0.000368,13]
[339847283,1728063040447,-151.0,0.000368,7]
[339847285,1728063040456,-256.774542,0.000368,7]
[339847287,1728063040466,-151.0,0.000368,7]
[339847289,1728063040476,-1500.0,0.000368,13]
[339847291,1728063040485,-7488.07,0.00036819,5]
[339847293,1728063040495,-436.09254634,0.0003684,11]
[339847295,1728063040505,-13492.6077806,0.0003687,6]
[339847297,1728063040515,-3496.7072,0.00036889,2]
[339847298,1728063040524,-151.0,0.0003689,7]
[339847300,1728063040534,-151.0,0.0003689,7]
[339847302,1728063040544,-151.0,0.0003689,7]
[339847304,1728063040554,-94448.2544641,0.0003689,6]
[339847306,1728063040563,-34014.9891192,0.0003689,6]
[339847308,1728063040573,-151.199339,0.0003689,7]
[339847310,1728063040582,-151.0,0.0003689,7]
[339847312,1728063040591,-436.09254634,0.0003689,11]
[339847314,1728063040602,-151.0,0.0003689,7]
[339847316,1728063040617,-151.82,0.0003689,2]
[339847317,1728063040626,-1000.0,0.0003689,2]
[339847319,1728063040635,-500.0,0.00036899,15]
[339847321,1728063040645,-335.74672744,0.00036899,15]
[339847324,1728063040656,-181424.116,0.000369,2]
[339847325,1728063040665,-196.83952938,0.000369,9]
[339847327,1728063040675,-6700.0,0.000369,13]
[339847329,1728063040685,-151.0,0.000369,7]
[339847331,1728063040694,-151.0,0.000369,7]
[339847333,1728063040704,-151.0,0.000369,7]
[339847336,1728063040714,-2200.0,0.000369,13]
[339847337,1728063040723,-26985.2155612,0.0003697,6]
[339847339,1728063040733,-34014.9891192,0.0003697,6]
[339847341,1728063040743,-176.05001175,0.0003697,60]
[339847343,1728063040752,-151.0,0.0003698,7]
[339847345,1728063040762,-170.032305,0.0003698,7]
[339847347,1728063040772,-297.0427076,0.0003698,7]
[339847349,1728063040782,-230.761427,0.0003698,7]
[339847351,1728063040791,-151.0,0.0003698,7]
[339847353,1728063040801,-151.0,0.0003698,7]
[339847354,1728063040812,-151.0,0.0003698,7]
[339847355,1728063040822,-67463.0389029,0.0003698,6]
[339847356,1728063040831,-68029.9782384,0.0003698,6]
[339847357,1728063040840,-206.0,0.0003699,10]
[339847358,1728063040853,-67463.0389029,0.0003699,6]
[339847359,1728063040863,-136059.956477,0.0003699,6]
[339847360,1728063040872,-151.0,0.0003699,7]
[339847361,1728063040882,-151.0,0.0003699,7]
[339847362,1728063040891,-184.812177,0.0003699,7]
[339847363,1728063040900,-151.82,0.0003699,2]
[339847364,1728063040910,-285158.41739019,0.00037,15]
[339847365,1728063040919,-1000.0,0.00037,7]
[339847366,1728063040929,-195.43131,0.00037,7]
[339847367,1728063040938,-151.0,0.00037,7]
[339847368,1728063040947,-151.0,0.00037,7]
[339847369,1728063040956,-151.630044,0.00037,7]
[339847370,1728063040970,-151.0,0.00037,7]
[339847371,1728063040979,-151.0,0.00037,7]
[339847373,1728063040989,-151.0,0.00037,7]
[339847375,1728063040999,-151.0,0.00037,7]
[339847377,1728063041008,-151.0,0.00037,7]
[339847378,1728063041018,-156.38652863,0.0003717,2]
[339847380,1728063041027,-12473.07591046,0.00037222,15]
[339847382,1728063041037,-17007.4945596,0.00037328,6]
[339847384,1728063041047,-500.0,0.00037356,2]
[339847386,1728063041056,-358.42,0.00037356,2]
[339847388,1728063041065,-500.0,0.00037356,2]
[339847390,1728063041075,-500.0,0.00037356,2]
[339847392,1728063041084,-500.0,0.00037356,2]
[339847393,1728063041093,-500.0,0.00037356,2]
[339847395,1728063041105,-500.0,0.00037356,2]
[339847397,1728063041115,-500.0,0.00037356,2]
[339847399,1728063041124,-500.0,0.00037356,2]
[339847401,1728063041133,-500.0,0.00037356,2]
[339847403,1728063041142,-500.0,0.00037356,2]
[339847404,1728063041152,-500.0,0.00037356,2]
[339847406,1728063041161,-500.0,0.00037356,2]
[339847408,1728063041170,-500.0,0.00037356,2]
[339847410,1728063041180,-500.0,0.00037356,2]
[339847412,1728063041189,-500.0,0.00037356,2]
[339847414,1728063041198,-500.0,0.00037356,2]
[339847416,1728063041208,-500.0,0.00037356,2]
[339847418,1728063041218,-500.0,0.00037356,2]
[339847420,1728063041227,-500.0,0.00037356,2]
[339847422,1728063041237,-274.96,0.00037356,2]
[339847424,1728063041247,-500.0,0.00037356,2]
[339847426,1728063041256,-17007.4945596,0.00037415,6]
[339847428,1728063041266,-151.0,0.00037425,7]
[339847430,1728063041275,-161.837654,0.00037445,7]
[339847431,1728063041284,-151.0,0.00037445,7]
[339847433,1728063041294,-476.68278577,0.0003746,2]
[339847435,1728063041303,-85037.472798,0.0003747,6]
[339847437,1728063041313,-151.82,0.0003747,2]
[339847439,1728063041323,-500.84141802,0.00037473,5]
[339847441,1728063041333,-300.0,0.00037479,30]
[339847443,1728063041342,-300.0,0.00037479,30]
[339847445,1728063041353,-300.0,0.00037479,30]
[339847447,1728063041363,-151.0,0.0003748,7]
[339847449,1728063041373,-311464.97463981,0.0003748,2]
[339847451,1728063041382,-151.0,0.0003749,7]
[339847452,1728063041392,-6720.44,0.00037496,90]
[339847454,1728063041401,-39518.75497562,0.000375,30]
[339847456,1728063041411,-2000.0,0.000375,2]
[339847458,1728063041420,-200.0,0.000375,2]
[339847460,1728063041430,-178.67105176,0.0003768,2]
[339847462,1728063041439,-156.38652863,0.00037716,2]
[339847464,1728063041448,-1206.85696921,0.00037726,2]
[339847466,1728063041458,-12473.07591046,0.00037744,15]
[339847468,1728063041467,-789.0,0.0003776,5]
[339847470,1728063041478,-267.0,0.00037761,7]
[339847472,1728063041487,-151.0,0.0003778,7]
[339847474,1728063041497,-500.0,0.00037808,120]
[339847476,1728063041506,-500.0,0.00037808,120]
[339847478,1728063041515,-500.0,0.00037808,120]
[339847480,1728063041525,-500.0,0.00037808,120]
[339847482,1728063041534,-500.0,0.00037808,120]
[339847484,1728063041544,-500.0,0.00037808,120]
[339847486,1728063041553,-500.0,0.00037808,120]
[339847488,1728063041562,-500.0,0.00037808,120]
[339847490,1728063041572,-500.0,0.00037808,120]
[339847492,1728063041581,-500.0,0.00037808,120]
[339847494,1728063041590,-500.0,0.00037808,120]
[339847495,1728063041600,-500.0,0.00037808,120]
[339847497,1728063041609,-500.0,0.00037808,120]
[339847499,1728063041619,-500.0,0.00037808,120]
[339847501,1728063041628,-500.0,0.00037808,120]
[339847502,1728063041637,-500.0,0.00037808,120]
[339847503,1728063041647,-500.0,0.00037808,120]
[339847504,1728063041656,-500.0,0.00037808,120]
[339847505,1728063041666,-338.11247748,0.00037808,120]
[339847506,1728063041675,-338.28,0.00037842,2]
[339847507,1728063041684,-8900.0,0.000379,13]
[339847508,1728063041693,-3000.0,0.000379,13]
[339847509,1728063041702,-671.64831938,0.00037927,2]
[339847510,1728063041712,-180.56814452,0.00037927,2]
[339847511,1728063041722,-6094.11099943,0.00037927,2]
[339847512,1728063041733,-198.54068962,0.00037927,2]
[339847513,1728063041742,-151.0,0.0003797,7]
[339847514,1728063041752,-500.0,0.00037973,2]
[339847515,1728063041761,-405.28974404,0.00037973,5]
[339847516,1728063041771,-500.73979238,0.00037973,5]
[339847517,1728063041781,-500.0,0.00037973,5]